[Event "*** SCC Grand Prix: Titled Tuesday Blitz"]
[Site "Chess.com"]
[Date "2020.09.08"]
[Round "6"]
[White "THE_PLAYER6"]
[Black "Gusarov91"]
[Result "1-0"]
[WhiteElo "2477"]
[BlackElo "2618"]
[TimeControl "180+1"]
[EndTime "11:08:47 PDT"]
[Termination "THE_PLAYER6 won by resignation"]

1. c4 {[%clk 0:03:00.9]} 1... Nf6 {[%clk 0:02:52.6]} 2. Nc3 {[%clk 0:03:00.5]}
2... d5 {[%clk 0:02:52.4]} 3. cxd5 {[%clk 0:02:58.9]} 3... Nxd5 {[%clk
0:02:53.3]} 4. g3 {[%clk 0:02:58.3]} 4... g6 {[%clk 0:02:51.9]} 5. Bg2 {[%clk
0:02:58.2]} 5... Nb6 {[%clk 0:02:52]} 6. Nf3 {[%clk 0:02:56.2]} 6... Bg7 {[%clk
0:02:52.3]} 7. O-O {[%clk 0:02:56.8]} 7... O-O {[%clk 0:02:52.3]} 8. d4 {[%clk
0:02:56.7]} 8... Nc6 {[%clk 0:02:52.1]} 9. d5 {[%clk 0:02:56.6]} 9... Nb4 {[%clk
0:02:51.4]} 10. e4 {[%clk 0:02:51.3]} 10... c6 {[%clk 0:02:51.7]} 11. a3 {[%clk
0:02:50.8]} 11... Na6 {[%clk 0:02:51.8]} 12. dxc6 {[%clk 0:02:50.2]} 12... bxc6
{[%clk 0:02:51.1]} 13. Qxd8 {[%clk 0:02:50.7]} 13... Rxd8 {[%clk 0:02:50.8]} 14.
Be3 {[%clk 0:02:51]} 14... Nc4 {[%clk 0:02:50.1]} 15. Rad1 {[%clk 0:02:41.3]}
15... Bg4 {[%clk 0:02:44.4]} 16. Bc1 {[%clk 0:02:37.2]} 16... Nxa3 {[%clk
0:02:38.9]} 17. h3 {[%clk 0:02:32.9]} 17... Bxf3 {[%clk 0:02:34]} 18. Bxf3
{[%clk 0:02:33.1]} 18... Nc4 {[%clk 0:02:34.3]} 19. Be2 {[%clk 0:02:32.1]} 19...
Nxb2 {[%clk 0:02:19.5]} 20. Bxb2 {[%clk 0:02:29.2]} 20... Nc5 {[%clk 0:02:20.1]}
21. Rxd8+ {[%clk 0:02:24.6]} 21... Rxd8 {[%clk 0:02:19.6]} 22. Rd1 {[%clk
0:02:09]} 22... Rxd1+ {[%clk 0:02:17.2]} 23. Nxd1 {[%clk 0:02:06.9]} 23... Nxe4
{[%clk 0:02:05.9]} 24. Bf3 {[%clk 0:02:04.4]} 24... f5 {[%clk 0:01:49.3]} 25.
Bxe4 {[%clk 0:02:01.3]} 25... Bxb2 {[%clk 0:01:48.4]} 26. Bxc6 {[%clk
0:01:49.5]} 26... Bd4 {[%clk 0:01:47.6]} 27. Kf1 {[%clk 0:01:49.8]} 27... a5
{[%clk 0:01:47.5]} 28. Ke2 {[%clk 0:01:50.2]} 28... Kf7 {[%clk 0:01:47.7]} 29.
Kd3 {[%clk 0:01:50.2]} 29... Bb6 {[%clk 0:01:47.5]} 30. f3 {[%clk 0:01:49.6]}
30... e5 {[%clk 0:01:46.6]} 31. Nc3 {[%clk 0:01:49.5]} 31... h5 {[%clk
0:01:42.1]} 32. Ba4 {[%clk 0:01:49.3]} 32... Bf2 {[%clk 0:01:41.7]} 33. g4
{[%clk 0:01:47.7]} 33... fxg4 {[%clk 0:01:41.5]} 34. fxg4 {[%clk 0:01:47.9]}
34... Be1 {[%clk 0:01:37]} 35. Nd5 {[%clk 0:01:45.9]} 35... hxg4 {[%clk
0:01:34.5]} 36. hxg4 {[%clk 0:01:45.8]} 36... Ke6 {[%clk 0:01:31.7]} 37. Ke4
{[%clk 0:01:46.1]} 37... Bg3 {[%clk 0:01:28.9]} 38. Be8 {[%clk 0:01:46.1]} 38...
g5 {[%clk 0:01:18.9]} 39. Ba4 {[%clk 0:01:45.1]} 39... Be1 {[%clk 0:01:17.1]}
40. Bb3 {[%clk 0:01:44.9]} 40... Kd6 {[%clk 0:01:14.7]} 41. Kf5 {[%clk
0:01:45.3]} 41... a4 {[%clk 0:01:15]} 42. Ba2 {[%clk 0:01:44.1]} 42... Bd2
{[%clk 0:01:15.2]} 43. Nb6 {[%clk 0:01:41.7]} 43... Kc5 {[%clk 0:01:02.9]} 44.
Nxa4+ {[%clk 0:01:33.3]} 44... Kd4 {[%clk 0:01:03.3]} 45. Bb1 {[%clk 0:01:31.1]}
45... Bf4 {[%clk 0:00:56.9]} 46. Nb6 {[%clk 0:01:29.9]} 46... Ke3 {[%clk
0:00:55.3]} 47. Be4 {[%clk 0:01:29.2]} 47... Kd4 {[%clk 0:00:53.9]} 48. Nd7
{[%clk 0:01:27.2]} 48... Bg3 {[%clk 0:00:51.4]} 49. Nf6 {[%clk 0:01:24]} 49...
Bf4 {[%clk 0:00:50.9]} 50. Ng8 {[%clk 0:01:24.5]} 50... Be3 {[%clk 0:00:48.9]}
51. Nh6 {[%clk 0:01:24.1]} 51... Bf4 {[%clk 0:00:49.1]} 52. Nf7 {[%clk
0:01:24.6]} 52... Bc1 {[%clk 0:00:41.5]} 53. Nxe5 {[%clk 0:01:22.9]} 53... Bf4
{[%clk 0:00:38.1]} 54. Nf3+ {[%clk 0:01:22.7]} 54... Ke3 {[%clk 0:00:38.2]} 55.
Nxg5 {[%clk 0:01:21.5]} 55... Bd6 {[%clk 0:00:35.4]} 56. Nf7 {[%clk 0:01:21.2]}
56... Be7 {[%clk 0:00:35.4]} 57. Bc6 {[%clk 0:01:19.9]} 57... Kd4 {[%clk
0:00:33.8]} 58. Be8 {[%clk 0:01:19.6]} 58... Kd5 {[%clk 0:00:32.1]} 59. Ne5
{[%clk 0:01:19.5]} 59... Bh4 {[%clk 0:00:29.3]} 60. Bf7+ {[%clk 0:01:17.9]}
60... Kd6 {[%clk 0:00:28.2]} 61. Nf3 {[%clk 0:01:14.2]} 61... Bd8 {[%clk
0:00:27.1]} 62. Ng5 {[%clk 0:01:13.7]} 62... Ba5 {[%clk 0:00:20.8]} 63. Ba2
{[%clk 0:01:12.1]} 63... Ke7 {[%clk 0:00:19]} 64. Ne4 {[%clk 0:01:12.2]} 64...
Be1 {[%clk 0:00:17.4]} 65. g5 {[%clk 0:01:12.3]} 65... Kf8 {[%clk 0:00:16.4]}
66. g6 {[%clk 0:01:12.2]} 66... Bh4 {[%clk 0:00:16.6]} 67. Ng5 {[%clk
0:01:10.4]} 67... Kg7 {[%clk 0:00:17]} 68. Ne6+ {[%clk 0:01:10.4]} 68... Kh8
{[%clk 0:00:17.2]} 69. Kg4 {[%clk 0:01:09.2]} 69... Be1 {[%clk 0:00:16.8]} 70.
Kh5 {[%clk 0:01:09.1]} 70... Bc3 {[%clk 0:00:16.7]} 71. Kg5 {[%clk 0:01:07.7]}
71... Bd2+ {[%clk 0:00:17]} 72. Kf5 {[%clk 0:01:07.1]} 72... Bc3 {[%clk
0:00:17.3]} 73. Nf4 {[%clk 0:01:04.5]} 73... Ba1 {[%clk 0:00:17.4]} 74. Nh5
{[%clk 0:01:04]} 74... Bb2 {[%clk 0:00:17.1]} 75. Ke6 {[%clk 0:01:04]} 75... Kg8
{[%clk 0:00:16.3]} 76. Ke7+ {[%clk 0:01:02.5]} 76... Kh8 {[%clk 0:00:16.1]} 77.
Kf8 {[%clk 0:01:01.6]} 77... Bg7+ {[%clk 0:00:15.6]} 78. Kf7 {[%clk 0:01:00.7]}
78... Ba1 {[%clk 0:00:15]} 79. Bb1 {[%clk 0:00:55.7]} 79... Bb2 {[%clk 0:00:15]}
80. Nf6 {[%clk 0:00:55.4]} 80... Bxf6 {[%clk 0:00:12]} 81. Kxf6 {[%clk
0:00:56.3]} 81... Kg8 {[%clk 0:00:12.1]} 82. Ba2+ {[%clk 0:00:56.5]} 1-0

[Event "*** SCC Grand Prix: Titled Tuesday Blitz"]
[Site "Chess.com"]
[Date "2020.09.08"]
[Round "6"]
[White "vugarrasulov"]
[Black "Korchmar_Vasiliy"]
[Result "1-0"]
[WhiteElo "2831"]
[BlackElo "2616"]
[TimeControl "180+1"]
[EndTime "11:08:48 PDT"]
[Termination "vugarrasulov won on time"]

1. d4 {[%clk 0:03:00.9]} 1... d5 {[%clk 0:02:58.3]} 2. Nc3 {[%clk 0:03:00.4]}
2... Nf6 {[%clk 0:02:58]} 3. Bg5 {[%clk 0:02:59.9]} 3... Nbd7 {[%clk 0:02:57.4]}
4. Qd3 {[%clk 0:02:58.8]} 4... c6 {[%clk 0:02:38.7]} 5. O-O-O {[%clk 0:02:55.3]}
5... b5 {[%clk 0:02:27.7]} 6. Nf3 {[%clk 0:02:40.8]} 6... b4 {[%clk 0:02:14]} 7.
Nb1 {[%clk 0:02:24.3]} 7... Qa5 {[%clk 0:02:10.4]} 8. a3 {[%clk 0:02:15.8]} 8...
e6 {[%clk 0:02:05]} 9. axb4 {[%clk 0:02:09.1]} 9... Bxb4 {[%clk 0:02:05.9]} 10.
Bxf6 {[%clk 0:02:04.3]} 10... Nxf6 {[%clk 0:01:53.4]} 11. Ne5 {[%clk 0:02:03.8]}
11... Qc7 {[%clk 0:01:41.6]} 12. f3 {[%clk 0:01:44.1]} 12... O-O {[%clk
0:01:39]} 13. g4 {[%clk 0:01:43.6]} 13... Rb8 {[%clk 0:01:24.7]} 14. e3 {[%clk
0:01:26.1]} 14... c5 {[%clk 0:01:18.6]} 15. g5 {[%clk 0:01:15.4]} 15... Nd7
{[%clk 0:01:18.7]} 16. f4 {[%clk 0:01:11.5]} 16... c4 {[%clk 0:01:14.2]} 17. Qe2
{[%clk 0:01:11.1]} 17... Nxe5 {[%clk 0:01:10.2]} 18. fxe5 {[%clk 0:01:11.8]}
18... c3 {[%clk 0:01:10.8]} 19. bxc3 {[%clk 0:01:00.6]} 19... Bxc3 {[%clk
0:01:11.7]} 20. Nxc3 {[%clk 0:01:01]} 20... Qxc3 {[%clk 0:01:11.7]} 21. Qd3
{[%clk 0:01:01.5]} 21... Qb2+ {[%clk 0:01:02]} 22. Kd2 {[%clk 0:01:01.8]} 22...
Bd7 {[%clk 0:01:02.9]} 23. Qc3 {[%clk 0:00:54.3]} 23... Qb6 {[%clk 0:00:55.9]}
24. Bd3 {[%clk 0:00:49.6]} 24... Rfc8 {[%clk 0:00:45.6]} 25. Qa3 {[%clk
0:00:49.9]} 25... Bb5 {[%clk 0:00:45.8]} 26. Rb1 {[%clk 0:00:46.7]} 26... Qc6
{[%clk 0:00:38.4]} 27. Rhc1 {[%clk 0:00:32.3]} 27... a6 {[%clk 0:00:33.6]} 28.
h4 {[%clk 0:00:32.2]} 28... Rb7 {[%clk 0:00:29.3]} 29. Rb3 {[%clk 0:00:27.8]}
29... Rbc7 {[%clk 0:00:27.7]} 30. Bxb5 {[%clk 0:00:19.2]} 30... axb5 {[%clk
0:00:28.6]} 31. Qb4 {[%clk 0:00:18.7]} 31... Rb7 {[%clk 0:00:10.9]} 32. Rc3
{[%clk 0:00:17]} 32... Qe8 {[%clk 0:00:11.3]} 33. Rxc8 {[%clk 0:00:16.3]} 33...
Qxc8 {[%clk 0:00:12.2]} 34. Ra1 {[%clk 0:00:16.8]} 34... h6 {[%clk 0:00:07.5]}
35. gxh6 {[%clk 0:00:16.5]} 35... gxh6 {[%clk 0:00:08.4]} 36. c3 {[%clk
0:00:12.5]} 36... Qd8 {[%clk 0:00:07.2]} 37. Rg1+ {[%clk 0:00:11.2]} 37... Kh7
{[%clk 0:00:05]} 38. Qb1+ {[%clk 0:00:10.8]} 38... Kh8 {[%clk 0:00:05.3]} 39.
Qf1 {[%clk 0:00:08.4]} 39... Ra7 {[%clk 0:00:03.9]} 40. Qf6+ {[%clk 0:00:07.2]}
40... Qxf6 {[%clk 0:00:03.4]} 41. exf6 {[%clk 0:00:08.1]} 41... Ra2+ {[%clk
0:00:03.5]} 42. Kd3 {[%clk 0:00:08.1]} 42... Rf2 {[%clk 0:00:02.1]} 43. Rb1
{[%clk 0:00:08.5]} 43... Rxf6 {[%clk 0:00:02.2]} 44. Rxb5 {[%clk 0:00:09.1]}
44... Kg7 {[%clk 0:00:02.4]} 45. c4 {[%clk 0:00:07.1]} 45... dxc4+ {[%clk
0:00:02.4]} 46. Kxc4 {[%clk 0:00:08]} 46... Rf3 {[%clk 0:00:02.9]} 47. Kd3
{[%clk 0:00:08.5]} 47... Rh3 {[%clk 0:00:03.2]} 48. h5 {[%clk 0:00:09.2]} 48...
f5 {[%clk 0:00:03]} 49. d5 {[%clk 0:00:05.3]} 49... exd5 {[%clk 0:00:02.6]} 50.
Kd4 {[%clk 0:00:05.9]} 50... Rxh5 {[%clk 0:00:02.7]} 51. Rxd5 {[%clk 0:00:06.1]}
51... Kg6 {[%clk 0:00:03.2]} 52. Rd8 {[%clk 0:00:05.3]} 52... Rh1 {[%clk
0:00:02.7]} 53. Ke5 {[%clk 0:00:04.7]} 53... Rf1 {[%clk 0:00:01.3]} 54. Rg8+
{[%clk 0:00:04.6]} 54... Kh5 {[%clk 0:00:01.6]} 55. Rf8 {[%clk 0:00:02.5]} 1-0

[Event "*** SCC Grand Prix: Titled Tuesday Blitz"]
[Site "Chess.com"]
[Date "2020.09.08"]
[Round "6"]
[White "ferdipy"]
[Black "eightbyeightchess"]
[Result "1-0"]
[WhiteElo "2347"]
[BlackElo "2429"]
[TimeControl "180+1"]
[EndTime "11:08:50 PDT"]
[Termination "ferdipy won by resignation"]

1. e4 {[%clk 0:03:00.9]} 1... d5 {[%clk 0:03:00]} 2. exd5 {[%clk 0:03:00.6]}
2... Nf6 {[%clk 0:03:00.4]} 3. d4 {[%clk 0:03:01.5]} 3... Bg4 {[%clk 0:03:00.5]}
4. Be2 {[%clk 0:03:01.3]} 4... Bxe2 {[%clk 0:03:00.2]} 5. Nxe2 {[%clk
0:03:02.2]} 5... Qxd5 {[%clk 0:03:00.8]} 6. O-O {[%clk 0:03:01.9]} 6... Nc6
{[%clk 0:03:00.8]} 7. c4 {[%clk 0:03:02.1]} 7... Qh5 {[%clk 0:02:53.9]} 8. d5
{[%clk 0:03:03]} 8... Ne5 {[%clk 0:02:27.3]} 9. Bf4 {[%clk 0:03:02.1]} 9... Nxc4
{[%clk 0:02:16.6]} 10. Qa4+ {[%clk 0:03:00]} 10... Nd7 {[%clk 0:02:16.8]} 11.
Qxc4 {[%clk 0:03:00]} 11... g6 {[%clk 0:02:15.2]} 12. Nbc3 {[%clk 0:02:59.4]}
12... Bg7 {[%clk 0:02:15.6]} 13. Ng3 {[%clk 0:02:57.8]} 13... Qh4 {[%clk
0:02:15.5]} 14. Qxc7 {[%clk 0:02:52.7]} 14... Nf6 {[%clk 0:02:10.6]} 15. Rae1
{[%clk 0:02:44.8]} 15... O-O {[%clk 0:02:10.4]} 16. Rxe7 {[%clk 0:02:42.9]}
16... Rac8 {[%clk 0:02:04.8]} 17. Qxb7 {[%clk 0:02:42.5]} 17... Qxf4 {[%clk
0:02:03.7]} 18. Qxa7 {[%clk 0:02:39.5]} 18... Ng4 {[%clk 0:01:59.8]} 19. Nce2
{[%clk 0:02:32.6]} 19... Qd2 {[%clk 0:01:44.4]} 20. Ne4 {[%clk 0:02:07.5]} 20...
Qxd5 {[%clk 0:01:37.1]} 21. h3 {[%clk 0:02:05]} 21... Nf6 {[%clk 0:01:10.8]} 22.
N4c3 {[%clk 0:01:55.4]} 22... Qc4 {[%clk 0:00:58.1]} 23. Rd1 {[%clk 0:01:19.3]}
23... Rb8 {[%clk 0:00:50.1]} 24. b3 {[%clk 0:01:16.2]} 24... Qc6 {[%clk
0:00:49.7]} 25. Qc7 {[%clk 0:01:14.2]} 25... Qa8 {[%clk 0:00:42.1]} 26. Na4
{[%clk 0:01:09.5]} 26... Nd5 {[%clk 0:00:34]} 27. Rxd5 {[%clk 0:01:04.2]} 27...
Qxd5 {[%clk 0:00:34.9]} 28. Nec3 {[%clk 0:01:00.8]} 28... Qd2 {[%clk 0:00:27.8]}
29. Ne4 {[%clk 0:01:01.3]} 29... Qd1+ {[%clk 0:00:23.2]} 30. Kh2 {[%clk
0:01:01.2]} 30... Rbc8 {[%clk 0:00:23.8]} 31. Qd7 {[%clk 0:00:58.1]} 31... Qxd7
{[%clk 0:00:18.8]} 32. Rxd7 {[%clk 0:00:59]} 32... Rc2 {[%clk 0:00:18.4]} 33.
Nac5 {[%clk 0:00:53.6]} 33... Rxa2 {[%clk 0:00:16.3]} 34. Kg3 {[%clk 0:00:51.6]}
34... Rb8 {[%clk 0:00:14.8]} 35. Kf3 {[%clk 0:00:49.4]} 35... Rc2 {[%clk
0:00:11.9]} 36. Nd3 {[%clk 0:00:47.6]} 36... Rxb3 {[%clk 0:00:08.9]} 37. Rd8+
{[%clk 0:00:47.2]} 37... Bf8 {[%clk 0:00:08.9]} 38. g4 {[%clk 0:00:41.8]} 38...
h6 {[%clk 0:00:08.6]} 39. h4 {[%clk 0:00:40.2]} 39... Kg7 {[%clk 0:00:06.1]} 40.
g5 {[%clk 0:00:38.3]} 40... hxg5 {[%clk 0:00:07]} 41. hxg5 {[%clk 0:00:37.9]}
41... Be7 {[%clk 0:00:07.6]} 42. Rd5 {[%clk 0:00:34.7]} 42... Rc6 {[%clk
0:00:06.2]} 43. Kg2 {[%clk 0:00:31.3]} 43... Re6 {[%clk 0:00:06.2]} 44. Nec5
{[%clk 0:00:28.8]} 44... Bxc5 {[%clk 0:00:06.5]} 45. Nxc5 {[%clk 0:00:29.7]}
45... Rbb6 {[%clk 0:00:05.1]} 46. Nxe6+ {[%clk 0:00:29.3]} 46... Rxe6 {[%clk
0:00:05.9]} 47. f4 {[%clk 0:00:29.6]} 47... Re3 {[%clk 0:00:05.7]} 48. Kf2
{[%clk 0:00:29.4]} 48... Ra3 {[%clk 0:00:06.3]} 49. Re5 {[%clk 0:00:29.9]} 49...
Kf8 {[%clk 0:00:06.4]} 50. Re3 {[%clk 0:00:30.5]} 50... Ra4 {[%clk 0:00:06.7]}
51. Kf3 {[%clk 0:00:30.7]} 51... Rb4 {[%clk 0:00:06.4]} 52. Re4 {[%clk 0:00:31]}
52... Rb1 {[%clk 0:00:07.1]} 53. Rd4 {[%clk 0:00:28.9]} 53... Rf1+ {[%clk
0:00:07.6]} 54. Ke4 {[%clk 0:00:28.5]} 54... Ke7 {[%clk 0:00:07.7]} 55. Ra4
{[%clk 0:00:29.1]} 55... Rb1 {[%clk 0:00:07.5]} 56. Ra7+ {[%clk 0:00:28.7]}
56... Ke6 {[%clk 0:00:08.1]} 57. Ra6+ {[%clk 0:00:28.7]} 57... Ke7 {[%clk
0:00:08.7]} 58. Ke5 {[%clk 0:00:27.8]} 58... Rb5+ {[%clk 0:00:08.2]} 59. Ke4
{[%clk 0:00:27.4]} 59... Rf5 {[%clk 0:00:09.1]} 60. Ra7+ {[%clk 0:00:25.1]}
60... Kd6 {[%clk 0:00:09]} 61. Ra6+ {[%clk 0:00:23.4]} 61... Kc5 {[%clk
0:00:09.4]} 62. Ra5+ {[%clk 0:00:23.4]} 62... Kd6 {[%clk 0:00:08.4]} 63. Rxf5
{[%clk 0:00:24.3]} 63... gxf5+ {[%clk 0:00:09.1]} 64. Kxf5 {[%clk 0:00:25.2]}
64... Ke7 {[%clk 0:00:10]} 65. Ke5 {[%clk 0:00:25.6]} 65... Kf8 {[%clk
0:00:10.1]} 66. Kf6 {[%clk 0:00:26.2]} 66... Kg8 {[%clk 0:00:09.8]} 67. f5
{[%clk 0:00:21.7]} 67... Kf8 {[%clk 0:00:09.7]} 68. g6 {[%clk 0:00:22.3]} 68...
Kg8 {[%clk 0:00:08.6]} 69. g7 {[%clk 0:00:22]} 69... Kh7 {[%clk 0:00:08.4]} 70.
Kxf7 {[%clk 0:00:22.9]} 70... Kh6 {[%clk 0:00:08.8]} 1-0

[Event "*** SCC Grand Prix: Titled Tuesday Blitz"]
[Site "Chess.com"]
[Date "2020.09.08"]
[Round "6"]
[White "PavelChernomordik"]
[Black "hellokostya"]
[Result "0-1"]
[WhiteElo "2343"]
[BlackElo "2483"]
[TimeControl "180+1"]
[EndTime "11:08:51 PDT"]
[Termination "hellokostya won on time"]

1. e4 {[%clk 0:03:00.9]} 1... c5 {[%clk 0:02:58.3]} 2. Nc3 {[%clk 0:02:57.5]}
2... e6 {[%clk 0:02:58]} 3. f4 {[%clk 0:02:56.3]} 3... Nc6 {[%clk 0:02:57.6]} 4.
Nf3 {[%clk 0:02:55.5]} 4... d5 {[%clk 0:02:56.6]} 5. Bb5 {[%clk 0:02:53.5]} 5...
Nf6 {[%clk 0:02:53.8]} 6. e5 {[%clk 0:02:47.9]} 6... Ng8 {[%clk 0:02:51.2]} 7.
O-O {[%clk 0:02:45.8]} 7... h5 {[%clk 0:02:49.9]} 8. d3 {[%clk 0:02:38.7]} 8...
Nh6 {[%clk 0:02:49]} 9. Ne2 {[%clk 0:02:25.1]} 9... Nf5 {[%clk 0:02:45.8]} 10.
c4 {[%clk 0:02:19.5]} 10... d4 {[%clk 0:01:52.3]} 11. Bxc6+ {[%clk 0:02:14.1]}
11... bxc6 {[%clk 0:01:53.2]} 12. Ng3 {[%clk 0:02:09.5]} 12... Nxg3 {[%clk
0:01:40.4]} 13. hxg3 {[%clk 0:02:08.1]} 13... Be7 {[%clk 0:01:34.9]} 14. Qa4
{[%clk 0:02:03.1]} 14... h4 {[%clk 0:01:26.6]} 15. g4 {[%clk 0:01:54.5]} 15...
O-O {[%clk 0:01:17.3]} 16. g5 {[%clk 0:01:46.4]} 16... f6 {[%clk 0:01:13.9]} 17.
exf6 {[%clk 0:01:29.5]} 17... gxf6 {[%clk 0:01:11.7]} 18. Qxc6 {[%clk
0:01:27.1]} 18... Bd7 {[%clk 0:01:10.2]} 19. Qe4 {[%clk 0:01:24.9]} 19... Qe8
{[%clk 0:00:58.3]} 20. Nxh4 {[%clk 0:01:17.5]} 20... Qh5 {[%clk 0:00:56.6]} 21.
Ng6 {[%clk 0:01:06.9]} 21... f5 {[%clk 0:00:46.7]} 22. Nxe7+ {[%clk 0:01:05.2]}
22... Kf7 {[%clk 0:00:46.4]} 23. Qe5 {[%clk 0:01:00.8]} 23... Kxe7 {[%clk
0:00:46.1]} 24. Qxc5+ {[%clk 0:00:58.4]} 24... Kf7 {[%clk 0:00:46.1]} 25. Qxd4
{[%clk 0:00:56.3]} 25... Rad8 {[%clk 0:00:31.8]} 26. Qf6+ {[%clk 0:00:48.1]}
26... Kg8 {[%clk 0:00:28.6]} 27. Qh6 {[%clk 0:00:44.2]} 27... Qxh6 {[%clk
0:00:28.1]} 28. gxh6 {[%clk 0:00:43.1]} 28... Bc6 {[%clk 0:00:29]} 29. Be3
{[%clk 0:00:39.3]} 29... Rxd3 {[%clk 0:00:28.5]} 30. Bxa7 {[%clk 0:00:38.2]}
30... Rd2 {[%clk 0:00:28.7]} 31. Rf2 {[%clk 0:00:36.5]} 31... Rd7 {[%clk
0:00:23.8]} 32. Bc5 {[%clk 0:00:34.5]} 32... Rfd8 {[%clk 0:00:22.8]} 33. Re1
{[%clk 0:00:31.7]} 33... Kf7 {[%clk 0:00:16.5]} 34. b4 {[%clk 0:00:27.2]} 34...
Rh8 {[%clk 0:00:15.9]} 35. b5 {[%clk 0:00:24.8]} 35... Be4 {[%clk 0:00:16.1]}
36. Rfe2 {[%clk 0:00:14.9]} 36... Rxh6 {[%clk 0:00:15.4]} 37. Rxe4 {[%clk
0:00:13]} 37... fxe4 {[%clk 0:00:16.3]} 38. Rxe4 {[%clk 0:00:11.1]} 38... Rd1+
{[%clk 0:00:12.4]} 39. Kf2 {[%clk 0:00:09.8]} 39... Ra1 {[%clk 0:00:11.8]} 40.
Ke3 {[%clk 0:00:08.9]} 40... Rxa2 {[%clk 0:00:11.4]} 41. g4 {[%clk 0:00:08.5]}
41... Rh3+ {[%clk 0:00:09.5]} 42. Kd4 {[%clk 0:00:08.1]} 42... Rc2 {[%clk
0:00:07.7]} 43. Ke5 {[%clk 0:00:07.2]} 43... Rhc3 {[%clk 0:00:06.8]} 44. f5
{[%clk 0:00:06.5]} 44... exf5 {[%clk 0:00:05.9]} 45. gxf5 {[%clk 0:00:06.4]}
45... Rxc4 {[%clk 0:00:06.8]} 46. Rxc4 {[%clk 0:00:05.3]} 46... Rxc4 {[%clk
0:00:07.7]} 47. Bd4 {[%clk 0:00:05.5]} 47... Rb4 {[%clk 0:00:07.3]} 48. b6
{[%clk 0:00:05.6]} 48... Rb5+ {[%clk 0:00:07.6]} 49. Kd6 {[%clk 0:00:05.1]}
49... Rxf5 {[%clk 0:00:05.8]} 50. Kc6 {[%clk 0:00:04.7]} 50... Rh5 {[%clk
0:00:02.5]} 51. b7 {[%clk 0:00:04.7]} 51... Rh6+ {[%clk 0:00:02.9]} 52. Bf6
{[%clk 0:00:03.8]} 52... Rxf6+ {[%clk 0:00:01.8]} 53. Kc7 {[%clk 0:00:04.7]}
53... Re6 {[%clk 0:00:01.4]} 54. b8=Q {[%clk 0:00:04.5]} 54... Re7+ {[%clk
0:00:02.3]} 55. Kd6 {[%clk 0:00:04.5]} 55... Re6+ {[%clk 0:00:03.2]} 56. Kd5
{[%clk 0:00:03.7]} 56... Re7 {[%clk 0:00:04.1]} 57. Qf4+ {[%clk 0:00:02.9]}
57... Ke8 {[%clk 0:00:04.1]} 58. Kd6 {[%clk 0:00:02.4]} 58... Rd7+ {[%clk
0:00:04.2]} 59. Ke6 {[%clk 0:00:02.2]} 59... Re7+ {[%clk 0:00:04.6]} 60. Kd6
{[%clk 0:00:01.8]} 60... Rd7+ {[%clk 0:00:05]} 61. Kc6 {[%clk 0:00:01.5]} 61...
Re7 {[%clk 0:00:04.8]} 0-1

[Event "*** SCC Grand Prix: Titled Tuesday Blitz"]
[Site "Chess.com"]
[Date "2020.09.08"]
[Round "6"]
[White "Paladin61"]
[Black "Sanan_Sjugirov"]
[Result "0-1"]
[WhiteElo "2643"]
[BlackElo "2841"]
[TimeControl "180+1"]
[EndTime "11:08:53 PDT"]
[Termination "Sanan_Sjugirov won on time"]

1. b3 {[%clk 0:02:59]} 1... d5 {[%clk 0:02:58.8]} 2. Bb2 {[%clk 0:02:59.1]} 2...
Bg4 {[%clk 0:02:40.7]} 3. f3 {[%clk 0:02:58]} 3... Bf5 {[%clk 0:02:31.9]} 4. e3
{[%clk 0:02:57.9]} 4... c5 {[%clk 0:02:20.9]} 5. Nc3 {[%clk 0:02:38.8]} 5... Nc6
{[%clk 0:02:19]} 6. e4 {[%clk 0:02:38.9]} 6... dxe4 {[%clk 0:02:16.8]} 7. fxe4
{[%clk 0:02:38.2]} 7... Bg6 {[%clk 0:02:15.2]} 8. Nf3 {[%clk 0:02:30.2]} 8... a6
{[%clk 0:02:07.9]} 9. g3 {[%clk 0:02:27.6]} 9... Nf6 {[%clk 0:02:04.4]} 10. d3
{[%clk 0:02:27]} 10... e6 {[%clk 0:02:03]} 11. Qd2 {[%clk 0:02:19.1]} 11... Be7
{[%clk 0:01:57.8]} 12. Bg2 {[%clk 0:02:15.7]} 12... Bh5 {[%clk 0:01:54.6]} 13.
O-O {[%clk 0:02:08]} 13... O-O {[%clk 0:01:52.6]} 14. Ne2 {[%clk 0:01:58.4]}
14... Nd7 {[%clk 0:01:45.4]} 15. Kh1 {[%clk 0:01:44.8]} 15... Rc8 {[%clk
0:01:40]} 16. Nf4 {[%clk 0:01:32.4]} 16... Bxf3 {[%clk 0:01:39.4]} 17. Bxf3
{[%clk 0:01:32.7]} 17... Bf6 {[%clk 0:01:38.5]} 18. c3 {[%clk 0:01:25.6]} 18...
Nde5 {[%clk 0:01:35.9]} 19. Be2 {[%clk 0:01:15.2]} 19... Bg5 {[%clk 0:01:32.6]}
20. Rad1 {[%clk 0:01:12.5]} 20... Ng6 {[%clk 0:01:26.9]} 21. Qe1 {[%clk
0:01:03.8]} 21... Qe7 {[%clk 0:01:19.8]} 22. Qf2 {[%clk 0:01:01.3]} 22... f5
{[%clk 0:00:44.6]} 23. Ba3 {[%clk 0:00:47]} 23... b6 {[%clk 0:00:40.1]} 24. d4
{[%clk 0:00:30.2]} 24... Bxf4 {[%clk 0:00:30.3]} 25. gxf4 {[%clk 0:00:29.9]}
25... fxe4 {[%clk 0:00:30]} 26. Qe3 {[%clk 0:00:25.8]} 26... Qh4 {[%clk
0:00:07.9]} 27. Qxe4 {[%clk 0:00:25.5]} 27... Nxf4 {[%clk 0:00:06.9]} 28. dxc5
{[%clk 0:00:22.5]} 28... b5 {[%clk 0:00:06.6]} 29. Bc1 {[%clk 0:00:20.6]} 29...
e5 {[%clk 0:00:05.5]} 30. Rd6 {[%clk 0:00:18.4]} 30... Ne7 {[%clk 0:00:04.5]}
31. Bxf4 {[%clk 0:00:15.1]} 31... Rxf4 {[%clk 0:00:04.5]} 32. Rxf4 {[%clk
0:00:15.3]} 32... Qxf4 {[%clk 0:00:04]} 33. Qxf4 {[%clk 0:00:10.6]} 33... exf4
{[%clk 0:00:04.9]} 34. b4 {[%clk 0:00:10.5]} 34... Kf7 {[%clk 0:00:03.9]} 35.
Rxa6 {[%clk 0:00:10]} 35... Nd5 {[%clk 0:00:03.1]} 36. Bxb5 {[%clk 0:00:10]}
36... Nxc3 {[%clk 0:00:03.3]} 37. Bc4+ {[%clk 0:00:10.1]} 37... Ke7 {[%clk
0:00:03.8]} 38. Kg2 {[%clk 0:00:08.3]} 38... g5 {[%clk 0:00:03.7]} 39. Kf3
{[%clk 0:00:07.6]} 39... h5 {[%clk 0:00:04]} 40. h3 {[%clk 0:00:06.9]} 40... Rb8
{[%clk 0:00:02.6]} 41. a3 {[%clk 0:00:06.7]} 41... Nb1 {[%clk 0:00:03.1]} 42.
Ra7+ {[%clk 0:00:05.6]} 42... Kf6 {[%clk 0:00:03.1]} 43. Ke4 {[%clk 0:00:05.6]}
43... Nd2+ {[%clk 0:00:02.9]} 44. Kd3 {[%clk 0:00:05.4]} 44... Rd8+ {[%clk
0:00:03.2]} 45. Kc3 {[%clk 0:00:04.7]} 45... Nxc4 {[%clk 0:00:03.5]} 46. Ra6+
{[%clk 0:00:04]} 46... Kf5 {[%clk 0:00:03.6]} 47. Kxc4 {[%clk 0:00:04.3]} 47...
f3 {[%clk 0:00:04.1]} 48. Ra7 {[%clk 0:00:04.4]} 48... Kg6 {[%clk 0:00:04]} 49.
Ra6+ {[%clk 0:00:03.8]} 49... Kg7 {[%clk 0:00:04.2]} 50. Ra7+ {[%clk 0:00:03.9]}
50... Kg8 {[%clk 0:00:04.5]} 51. Ra6 {[%clk 0:00:03.4]} 51... f2 {[%clk
0:00:04.9]} 52. Rf6 {[%clk 0:00:02.6]} 52... Rf8 {[%clk 0:00:05]} 53. Rxf2
{[%clk 0:00:01.6]} 53... Rxf2 {[%clk 0:00:05.2]} 54. c6 {[%clk 0:00:01.9]} 54...
g4 {[%clk 0:00:05]} 55. hxg4 {[%clk 0:00:01.6]} 55... hxg4 {[%clk 0:00:05.9]}
0-1